fUSD/lending_fUSD_20240327
["ID","MTS","AMOUNT","RATE_DAILY","PERIOD"]
[320730087,1711539083973,-3406.52,0.0005589,120]
[320730088,1711539083982,-1067.47,0.0005589,120]
[320730089,1711539083991,-500.0,0.0005589,120]
[320730090,1711539084001,-1008.05,0.0005589,120]
[320730091,1711539084010,-532.43,0.0005589,120]
[320730092,1711539084020,-500.0,0.0005589,120]
[320730093,1711539084029,-3326.63,0.0005589,120]
[320730094,1711539084039,-949.03,0.0005589,120]
[320730095,1711539084048,-13832.31,0.0005589,120]
[320730096,1711539084057,-500.0,0.0005589,120]
[320730097,1711539084066,-5725.46,0.0005589,120]
[320730098,1711539084076,-500.0,0.0005589,120]
[320730099,1711539084085,-1080.08,0.0005589,120]
[320730100,1711539084095,-638.55,0.0005589,120]
[320730101,1711539084105,-500.0,0.0005589,120]
[320730102,1711539084114,-532.1,0.0005589,120]
[320730103,1711539084125,-868.21,0.0005589,120]
[320730104,1711539084134,-3178.59,0.0005589,120]
[320730105,1711539084143,-1914.32,0.0005589,120]
[320730106,1711539084153,-5718.22,0.0005589,120]
[320730107,1711539084162,-500.0,0.0005589,120]
[320730108,1711539084171,-1510.54,0.0005589,120]
[320730109,1711539084181,-6090.95,0.0005589,120]
[320730110,1711539084190,-500.0,0.0005589,120]
[320730111,1711539084199,-2368.29,0.0005589,120]
[320730112,1711539084211,-1975.68,0.0005589,120]
[320730113,1711539084220,-2626.24,0.0005589,120]
[320730114,1711539084229,-826.27,0.0005589,120]
[320730115,1711539084239,-5971.8,0.0005589,120]
[320730116,1711539084252,-6306.66,0.0005589,120]
[320730117,1711539084262,-3796.34,0.0005589,120]
[320730118,1711539084272,-3897.67,0.0005589,120]
[320730119,1711539084281,-500.0,0.0005589,120]
[320730120,1711539084291,-2196.71,0.0005589,120]
[320730121,1711539084301,-1053.73,0.0005589,120]
[320730122,1711539084310,-500.0,0.0005589,7]
[320730123,1711539084320,-2509.66,0.0005589,120]
[320730124,1711539084330,-500.0,0.0005589,120]
[320730125,1711539084341,-2090.88,0.0005589,120]
[320730126,1711539084350,-500.0,0.0005589,120]
[320730127,1711539084360,-3728.83,0.0005589,120]
[320730128,1711539084371,-14051.88,0.0005589,120]
[320730129,1711539084381,-5336.71,0.0005589,120]
[320730130,1711539084391,-500.0,0.0005589,120]
[320730131,1711539084400,-500.0,0.0005589,120]
[320730132,1711539084410,-6749.09,0.0005589,120]
[320730133,1711539084420,-6046.1,0.0005589,120]
[320730134,1711539084429,-1400.16,0.0005589,120]
[320730135,1711539084439,-1020.49,0.0005589,120]
[320730136,1711539084449,-592.67448409,0.0005589,120]
[320730137,1711539084462,-3525.02,0.0005589,120]
[320730138,1711539084472,-9670.8,0.0005589,120]
[320730139,1711539084482,-2244.9,0.0005589,120]
[320730140,1711539084492,-4278.93,0.0005589,120]
[320730141,1711539084501,-500.0,0.0005589,120]
[320730142,1711539084510,-5002.55,0.0005589,120]
[320730143,1711539084520,-500.0,0.0005589,120]
[320730144,1711539084530,-500.0,0.0005589,120]
[320730145,1711539084539,-5599.22,0.0005589,120]
[320730146,1711539084549,-1319.68,0.0005589,120]
[320730147,1711539084559,-4145.52,0.0005589,120]
[320730148,1711539084568,-1033.96,0.0005589,120]
[320730149,1711539084578,-8690.1,0.0005589,120]
[320730150,1711539084587,-759.99,0.0005589,120]
[320730151,1711539084597,-500.0,0.0005589,120]
[320730152,1711539084606,-3689.75,0.0005589,120]
[320730153,1711539084616,-938.28,0.0005589,120]
[320730154,1711539084625,-3289.32,0.0005589,120]
[320730155,1711539084635,-773.1,0.0005589,120]
[320730156,1711539084645,-670.41,0.0005589,120]
[320730157,1711539084655,-8474.88,0.0005589,120]
[320730158,1711539084665,-684.84,0.0005589,120]
[320730159,1711539084676,-16950.66,0.0005589,120]
[320730160,1711539084686,-991.15,0.0005589,120]
[320730161,1711539084695,-229.52,0.0005589,120]
[320730162,1711539084708,-5480.38,0.0005589,120]
[320730163,1711539084717,-500.0,0.0005589,120]
[320730164,1711539084727,-3421.26,0.0005589,120]
[320730165,1711539084736,-649.49,0.0005589,120]
[320730166,1711539084745,-500.0,0.0005589,120]
[320730167,1711539084754,-1159.66,0.0005589,120]
[320730168,1711539084764,-2172.19,0.0005589,120]
[320730169,1711539084774,-2895.84,0.0005589,120]
[320730170,1711539084784,-20784.38,0.0005589,120]
[320730171,1711539084793,-4740.83,0.0005589,120]
[320730172,1711539084804,-2732.75,0.0005589,120]
[320730173,1711539084813,-17160.48,0.0005589,120]
[320730174,1711539084823,-886.33,0.0005589,120]
[320730175,1711539084833,-672.63,0.0005589,120]
[320730176,1711539084842,-6247.3,0.0005589,120]
[320730177,1711539084852,-5091.09,0.0005589,21]
[320730178,1711539084862,-500.0,0.0005589,120]
[320730179,1711539084871,-8381.34,0.0005589,120]
[320730180,1711539084880,-584.47,0.0005589,120]
[320730181,1711539084890,-4086.57,0.0005589,120]
[320730182,1711539084899,-2273.07,0.0005589,120]
[320730183,1711539084909,-2370.47,0.0005589,120]
[320730184,1711539084919,-19292.32,0.0005589,120]
[320730185,1711539084928,-2960.24,0.0005589,120]
[320730186,1711539084937,-1173.99,0.0005589,120]
[320730187,1711539084947,-500.0,0.0005589,120]
[320730188,1711539084958,-500.0,0.0005589,85]
[320730189,1711539084968,-2202.57,0.0005589,120]
[320730190,1711539084978,-391.2,0.0005589,120]
[320730191,1711539084988,-3278.85,0.0005589,120]
[320730192,1711539084998,-12410.62,0.0005589,120]
[320730193,1711539085007,-8798.58,0.0005589,120]
[320730194,1711539085016,-876.94,0.0005589,120]
[320730195,1711539085026,-500.0,0.0005589,120]
[320730196,1711539085036,-3583.19,0.0005589,120]
[320730197,1711539085045,-895.2,0.0005589,120]
[320730198,1711539085055,-500.0,0.0005589,120]
[320730199,1711539085065,-500.0,0.0005589,120]
[320730200,1711539085075,-500.0,0.0005589,120]
[320730201,1711539085084,-443.34,0.0005589,120]
[320730202,1711539085094,-1845.88,0.0005589,120]
[320730203,1711539085103,-937.27,0.0005589,120]
[320730204,1711539085113,-1083.78,0.0005589,120]
[320730205,1711539085123,-3201.11,0.0005589,120]
[320730206,1711539085132,-2638.24,0.0005589,120]
[320730207,1711539085142,-1388.52,0.0005589,120]
[320730208,1711539085151,-4892.27,0.0005589,120]
[320730209,1711539085160,-500.0,0.0005589,120]
[320730210,1711539085170,-2480.34,0.0005589,120]
[320730211,1711539085180,-1350.19,0.0005589,120]
[320730212,1711539085189,-3142.36,0.0005589,120]
[320730213,1711539085199,-2180.01,0.0005589,120]
[320730214,1711539085208,-463.05279487,0.0005589,120]
[320730215,1711539085218,-1470.53,0.0005589,120]
[320730216,1711539085227,-500.0,0.0005589,120]
[320730217,1711539085237,-500.0,0.0005589,120]
[320730218,1711539085247,-500.0,0.0005589,120]
[320730219,1711539085257,-505.71,0.0005589,120]
[320730220,1711539085269,-1659.22,0.0005589,120]
[320730221,1711539085279,-8083.93,0.0005589,120]
[320730222,1711539085288,-500.0,0.0005589,120]
[320730223,1711539085297,-2931.63,0.0005589,120]
[320730224,1711539085307,-2901.36,0.0005589,120]
[320730225,1711539085318,-541.86,0.0005589,120]
[320730226,1711539085328,-3516.57,0.0005589,120]
[320730227,1711539085338,-4166.77,0.0005589,120]
[320730228,1711539085348,-500.0,0.0005589,120]
[320730229,1711539085358,-10990.32,0.0005589,120]
[320730230,1711539085368,-1139.26,0.0005589,120]
[320730231,1711539085378,-151.0,0.0005589,120]
[320730232,1711539085387,-686.73,0.0005589,120]
[320730233,1711539085397,-1716.32,0.0005589,120]
[320730234,1711539085406,-500.0,0.0005589,120]
[320730235,1711539085416,-2230.4,0.0005589,120]
[320730236,1711539085425,-1803.38,0.0005589,120]
[320730237,1711539085435,-2528.02,0.0005589,120]
[320730238,1711539085445,-1407180.16252296,0.0005589,120]
[320730239,1711539085455,-5232.74683703,0.0005589,120]
[320730240,1711539085468,-83083.58990231,0.000559,120]
[320730241,1711539085477,-151.0,0.000559,120]
[320730242,1711539085487,-1000.0,0.000559,7]
[320730243,1711539085497,-1502.260086,0.0005596,27]
[320730244,1711539085506,-1000.0,0.0005598,27]
[320730245,1711539085516,-190.24451948,0.00055983,120]
[320730246,1711539085526,-36348.19488428,0.00056,120]
[320730247,1711539085535,-152.24,0.00056,120]
[320730248,1711539085545,-268.379999,0.00056,120]
[320730249,1711539085554,-4127.42913217,0.00056,120]
[320730250,1711539085564,-392.04787,0.00056,35]
[320730251,1711539085574,-250.0,0.00056,22]
[320730252,1711539085583,-250.0,0.00056,22]
[320730253,1711539085592,-350.0,0.00056,56]
[320730254,1711539085602,-1000.0,0.00056,27]
[320730255,1711539085612,-2000.0,0.00056,30]
[320730256,1711539085621,-37779.70111901,0.00056,120]
[320730257,1711539085630,-5000.0,0.00056,120]
[320730258,1711539085640,-5000.0,0.00056,120]
[320730259,1711539085649,-186.66881899,0.00056028,106]
[320730260,1711539085660,-2000.2861,0.00056117,5]
[320730261,1711539085669,-2000.0,0.00056117,5]
[320730262,1711539085679,-1852.1684876,0.00056126,2]
[320730263,1711539085689,-18483.7102244,0.00056126,2]
[320730264,1711539085699,-1223.1985855,0.00056126,2]
[320730265,1711539085709,-5048.5223769,0.00056126,2]
[320730266,1711539085719,-3005.1790218,0.00056126,2]
[320730267,1711539085729,-221.1132656,0.00056126,2]
[320730268,1711539085739,-749.32,0.00056134,120]
[320730269,1711539085748,-507.0,0.00056137,120]
[320730270,1711539085757,-2000.0,0.00056164,120]
[320730271,1711539085767,-895.23,0.00056164,120]
[320730272,1711539085776,-575.28,0.00056164,120]
[320730273,1711539085787,-500.0,0.00056164,120]
[320730274,1711539085797,-500.0,0.00056164,120]
[320730275,1711539085807,-500.0,0.00056164,120]
[320730276,1711539085817,-500.0,0.00056164,120]
[320730277,1711539085826,-500.0,0.00056164,120]
[320730278,1711539085836,-500.0,0.00056164,120]
[320730279,1711539085846,-563.96,0.00056164,120]
[320730280,1711539085856,-500.0,0.00056164,120]
[320730281,1711539085866,-500.0,0.00056164,120]
[320730282,1711539085875,-500.0,0.00056164,120]
[320730283,1711539085885,-343.32,0.00056164,120]
[320730284,1711539085895,-500.0,0.00056164,120]
[320730285,1711539085905,-212.36,0.00056164,120]
[320730286,1711539085914,-500.0,0.00056164,120]
[320730287,1711539085923,-435.68,0.00056164,120]
[320730288,1711539085933,-500.0,0.00056164,120]
[320730289,1711539085942,-500.0,0.00056164,120]
[320730290,1711539085952,-501.42,0.00056164,120]
[320730291,1711539085963,-500.0,0.00056164,120]
[320730292,1711539085972,-500.0,0.00056164,120]
[320730293,1711539085982,-500.0,0.00056164,120]
[320730294,1711539085992,-500.0,0.00056164,120]
[320730295,1711539086001,-500.0,0.00056164,120]
[320730296,1711539086010,-500.0,0.00056164,120]
[320730297,1711539086020,-500.0,0.00056164,120]
[320730298,1711539086029,-500.0,0.00056164,120]
[320730299,1711539086038,-976.2,0.00056164,120]
[320730300,1711539086048,-500.0,0.00056164,120]
[320730301,1711539086057,-500.0,0.00056164,120]
[320730302,1711539086066,-531.34,0.00056164,120]
[320730303,1711539086076,-500.0,0.00056164,120]
[320730304,1711539086085,-500.0,0.00056164,120]
[320730305,1711539086094,-500.0,0.00056164,120]
[320730306,1711539086104,-575.24,0.00056164,120]
[320730307,1711539086113,-500.0,0.00056164,120]
[320730308,1711539086122,-500.0,0.00056164,120]
[320730309,1711539086131,-500.0,0.00056164,120]
[320730310,1711539086141,-500.0,0.00056164,120]
[320730311,1711539086150,-645.14,0.00056164,120]
[320730312,1711539086160,-503.38,0.00056164,120]
[320730313,1711539086170,-500.0,0.00056164,120]
[320730314,1711539086180,-544.36,0.00056164,120]
[320730315,1711539086189,-656.62,0.00056164,120]
[320730316,1711539086370,-500.0,0.00056164,120]
[320730317,1711539086380,-786.05,0.00056164,120]
[320730318,1711539086389,-1108.32,0.00056164,120]
[320730319,1711539086398,-500.0,0.00056164,120]
[320730320,1711539086408,-500.0,0.00056164,120]
[320730321,1711539086417,-500.0,0.00056164,120]
[320730322,1711539086427,-500.0,0.00056164,120]
[320730323,1711539086436,-500.0,0.00056164,120]
[320730324,1711539086445,-582.28,0.00056164,120]
[320730325,1711539086456,-500.0,0.00056164,120]
[320730326,1711539086465,-500.0,0.00056164,120]
[320730327,1711539086475,-500.0,0.00056164,120]
[320730328,1711539086484,-527.56,0.00056164,120]
[320730329,1711539086493,-500.0,0.00056164,120]
[320730330,1711539086502,-268.9,0.00056164,120]
[320730331,1711539086512,-500.0,0.00056164,120]
[320730332,1711539086521,-500.0,0.00056164,120]
[320730333,1711539086530,-500.0,0.00056164,120]
[320730334,1711539086540,-456.08,0.00056164,120]
[320730335,1711539086549,-516.18,0.00056164,120]
[320730336,1711539086559,-500.0,0.00056164,120]
[320730337,1711539086569,-500.0,0.00056164,120]
[320730338,1711539086578,-500.0,0.00056164,120]
[320730339,1711539086588,-542.70310809,0.00056164,120]
[320730340,1711539086597,-500.0,0.00056164,120]
[320730341,1711539086606,-500.0,0.00056164,120]
[320730342,1711539086616,-500.0,0.00056164,120]
[320730343,1711539086625,-500.0,0.00056164,120]
[320730344,1711539086634,-500.0,0.00056164,120]
[320730345,1711539086643,-500.0,0.00056164,120]
[320730346,1711539086653,-188.24,0.00056164,120]
[320730347,1711539086663,-500.0,0.00056164,120]
[320730348,1711539086673,-500.66,0.00056164,120]
[320730349,1711539086682,-500.0,0.00056164,120]
[320730350,1711539086692,-500.0,0.00056164,120]
[320730351,1711539086701,-242.58,0.00056164,120]
[320730352,1711539086712,-500.0,0.00056164,120]
[320730353,1711539086721,-650.65,0.00056164,120]
[320730354,1711539086731,-500.0,0.00056164,120]
[320730355,1711539086740,-500.0,0.00056164,120]
[320730356,1711539086749,-500.0,0.00056164,120]
[320730357,1711539086758,-579.16,0.00056164,120]
[320730358,1711539086767,-666.49,0.00056164,120]
[320730359,1711539086777,-500.0,0.00056164,120]
[320730360,1711539086786,-512.61,0.00056164,120]
[320730361,1711539086796,-500.0,0.00056164,120]
[320730362,1711539086806,-500.0,0.00056164,120]
[320730363,1711539086816,-500.0,0.00056164,120]
[320730364,1711539086827,-500.0,0.00056164,120]
[320730365,1711539086836,-500.0,0.00056164,120]
[320730366,1711539086845,-500.0,0.00056164,120]
[320730367,1711539086855,-500.0,0.00056164,120]
[320730368,1711539086865,-610.66,0.00056164,120]
[320730369,1711539086874,-544.48,0.00056164,120]
[320730370,1711539086883,-500.0,0.00056164,120]
[320730371,1711539086893,-500.0,0.00056164,120]
[320730372,1711539086902,-500.0,0.00056164,120]
[320730373,1711539086911,-1264.52,0.00056164,120]
[320730374,1711539086920,-564.14,0.00056164,120]
[320730375,1711539086929,-617.82,0.00056164,120]
[320730376,1711539086938,-832.09,0.00056164,120]
[320730377,1711539086948,-921.37,0.00056164,120]
[320730378,1711539086959,-695.47,0.00056164,120]
[320730379,1711539086968,-1458.74,0.00056164,120]
[320730380,1711539086978,-500.0,0.00056164,120]
[320730381,1711539086987,-318.98,0.00056164,120]
[320730382,1711539086997,-1146.87,0.00056164,120]
[320730383,1711539087006,-500.0,0.00056164,120]
[320730384,1711539087015,-597.38,0.00056164,120]
[320730385,1711539087025,-2719.96,0.00056164,120]
[320730386,1711539087035,-500.0,0.00056164,120]
[320730387,1711539087044,-1170.95,0.00056164,120]
[320730388,1711539087054,-500.0,0.00056164,120]
[320730389,1711539087063,-500.0,0.00056164,120]
[320730390,1711539087073,-391.54,0.00056164,120]
[320730391,1711539087083,-552.78,0.00056164,120]
[320730392,1711539087092,-1986.6,0.00056164,120]
[320730393,1711539087101,-884.38,0.00056164,120]
[320730394,1711539087111,-1057.95,0.00056164,120]
[320730395,1711539087120,-500.0,0.00056164,120]
[320730396,1711539087130,-616.91,0.00056164,120]
[320730397,1711539087139,-537.22,0.00056164,120]
[320730398,1711539087148,-533.04,0.00056164,120]
[320730399,1711539087158,-702.45,0.00056164,120]
[320730400,1711539087168,-5471.51,0.00056164,120]
[320730401,1711539087177,-587.11,0.00056164,120]
[320730402,1711539087186,-500.0,0.00056164,120]
[320730403,1711539087196,-500.0,0.00056164,120]
[320730404,1711539087206,-500.0,0.00056164,120]
[320730405,1711539087215,-500.0,0.00056164,120]
[320730406,1711539087225,-2128.3,0.00056164,120]
[320730407,1711539087234,-530.5,0.00056164,120]
[320730408,1711539087244,-500.0,0.00056164,120]
[320730409,1711539087256,-500.0,0.00056164,120]
[320730410,1711539087265,-961.96,0.00056164,120]
[320730411,1711539087275,-792.02,0.00056164,120]
[320730412,1711539087285,-613.31,0.00056164,120]
[320730413,1711539087295,-1258.8,0.00056164,120]
[320730414,1711539087305,-931.2,0.00056164,120]
[320730415,1711539087315,-663.5,0.00056164,120]
[320730416,1711539087325,-500.0,0.00056164,120]
[320730417,1711539087335,-1126.29,0.00056164,120]
[320730418,1711539087347,-905.93,0.00056164,120]
[320730419,1711539087356,-596.37,0.00056164,120]
[320730420,1711539087366,-500.0,0.00056164,120]
[320730421,1711539087376,-500.0,0.00056164,120]
[320730422,1711539087385,-500.0,0.00056164,120]
[320730423,1711539087395,-1145.15,0.00056164,120]
[320730424,1711539087404,-1047.43,0.00056164,120]
[320730425,1711539087414,-500.0,0.00056164,120]
[320730426,1711539087423,-1079.19,0.00056164,120]
[320730427,1711539087433,-500.0,0.00056164,120]
[320730428,1711539087442,-500.0,0.00056164,120]
[320730429,1711539087452,-500.0,0.00056164,120]
[320730430,1711539087464,-500.0,0.00056164,120]
[320730431,1711539087474,-1050.1,0.00056164,120]
[320730432,1711539087484,-500.0,0.00056164,120]
[320730433,1711539087494,-500.0,0.00056164,120]
[320730434,1711539087504,-668.88,0.00056164,120]
[320730435,1711539087513,-613.86,0.00056164,120]
[320730436,1711539087522,-798.22,0.00056164,120]
[320730437,1711539087532,-500.0,0.00056164,120]
[320730438,1711539087542,-865.88,0.00056164,120]
[320730439,1711539087553,-500.0,0.00056164,120]
[320730440,1711539087562,-500.0,0.00056164,120]
[320730441,1711539087572,-500.0,0.00056164,120]
[320730442,1711539087581,-500.0,0.00056164,120]
[320730443,1711539087591,-805.48,0.00056164,120]
[320730444,1711539087600,-698.77,0.00056164,120]
[320730445,1711539087610,-895.29,0.00056164,120]
[320730446,1711539087619,-2904.63,0.00056164,120]
[320730447,1711539087629,-500.0,0.00056164,120]
[320730448,1711539087639,-575.0,0.00056164,120]
[320730449,1711539087648,-1059.6,0.00056164,120]
[320730450,1711539087657,-624.76,0.00056164,120]
[320730451,1711539087666,-566.16,0.00056164,120]
[320730452,1711539087676,-500.0,0.00056164,120]
[320730453,1711539087685,-500.0,0.00056164,120]
[320730454,1711539087695,-500.0,0.00056164,120]
[320730455,1711539087706,-596.27,0.00056164,120]
[320730456,1711539087715,-511.44,0.00056164,120]
[320730457,1711539087725,-500.0,0.00056164,120]
[320730458,1711539087734,-2461.83,0.00056164,120]
[320730459,1711539087743,-670.39,0.00056164,120]
[320730460,1711539087754,-500.0,0.00056164,120]
[320730461,1711539087763,-1096.84,0.00056164,120]
[320730462,1711539087772,-730.57,0.00056164,120]
[320730463,1711539087782,-526.24,0.00056164,120]
[320730464,1711539087792,-813.47,0.00056164,120]
[320730465,1711539087801,-500.0,0.00056164,120]
[320730466,1711539087811,-500.0,0.00056164,120]
[320730467,1711539087820,-982.22,0.00056164,120]
[320730468,1711539087829,-2323.15,0.00056164,120]
[320730469,1711539087839,-952.22,0.00056164,120]
[320730470,1711539087848,-1090.65,0.00056164,120]
[320730471,1711539087858,-2118.58,0.00056164,120]
[320730472,1711539087868,-819.74,0.00056164,120]
[320730473,1711539087878,-500.0,0.00056164,120]
[320730474,1711539087887,-500.0,0.00056164,120]
[320730475,1711539087898,-500.0,0.00056164,120]
[320730476,1711539087908,-500.0,0.00056164,120]
[320730477,1711539087917,-500.0,0.00056164,120]
[320730478,1711539087927,-500.0,0.00056164,120]
[320730479,1711539087936,-680.58,0.00056164,120]
[320730480,1711539087946,-1006.99,0.00056164,120]
[320730481,1711539087956,-500.0,0.00056164,120]
[320730482,1711539087966,-2012.56,0.00056164,120]
[320730483,1711539087975,-500.0,0.00056164,120]
[320730484,1711539087985,-525.09,0.00056164,120]
[320730485,1711539087995,-1027.05,0.00056164,120]
[320730486,1711539088004,-775.63,0.00056164,120]
[320730487,1711539088014,-909.15,0.00056164,120]
[320730488,1711539088024,-669.48,0.00056164,120]
[320730489,1711539088033,-2014.61,0.00056164,120]
[320730490,1711539088042,-500.0,0.00056164,120]
[320730491,1711539088051,-613.39,0.00056164,30]
[320730492,1711539088061,-500.0,0.00056164,120]
[320730493,1711539088071,-500.0,0.00056164,120]
[320730494,1711539088081,-288.34,0.00056164,120]
[320730495,1711539088090,-670.15,0.00056164,120]
[320730496,1711539088100,-500.0,0.00056164,120]
[320730497,1711539088109,-500.0,0.00056164,120]
[320730498,1711539088118,-613.0,0.00056164,120]
[320730499,1711539088127,-500.0,0.00056164,120]
[320730500,1711539088136,-741.01,0.00056164,120]
[320730501,1711539088146,-715.82,0.00056164,120]
[320730502,1711539088155,-500.0,0.00056164,120]
[320730503,1711539088164,-500.0,0.00056164,120]
[320730504,1711539088174,-693.91,0.00056164,120]
[320730505,1711539088183,-617.32,0.00056164,120]
[320730506,1711539088193,-500.0,0.00056164,120]
[320730507,1711539088202,-1436.63,0.00056164,120]
[320730508,1711539088215,-788.63,0.00056164,120]
[320730509,1711539088224,-500.0,0.00056164,120]
[320730510,1711539088233,-500.0,0.00056164,120]
[320730511,1711539088242,-500.0,0.00056164,120]
[320730512,1711539088252,-852.33,0.00056164,120]
[320730513,1711539088263,-500.0,0.00056164,120]
[320730514,1711539088273,-500.0,0.00056164,120]
[320730515,1711539088282,-608.04,0.00056164,120]
[320730516,1711539088291,-500.0,0.00056164,120]
[320730517,1711539088300,-632.68,0.00056164,120]
[320730518,1711539088311,-500.0,0.00056164,120]
[320730519,1711539088320,-524.62,0.00056164,120]
[320730520,1711539088329,-620.43,0.00056164,120]
[320730521,1711539088340,-818.9,0.00056164,120]
[320730522,1711539088349,-2063.63,0.00056164,120]
[320730523,1711539088358,-1004.28,0.00056164,120]
[320730524,1711539088367,-2011.71,0.00056164,120]
[320730525,1711539088377,-807.51,0.00056164,120]
[320730526,1711539088386,-500.0,0.00056164,120]
[320730527,1711539088395,-500.0,0.00056164,120]
[320730528,1711539088404,-500.0,0.00056164,120]
[320730529,1711539088414,-500.0,0.00056164,120]
[320730530,1711539088424,-763.33,0.00056164,120]
[320730531,1711539088433,-755.18,0.00056164,120]
[320730532,1711539088442,-487.81,0.00056164,120]
[320730533,1711539088452,-500.0,0.00056164,120]
[320730534,1711539088464,-842.7,0.00056164,120]
[320730535,1711539088473,-713.05,0.00056164,120]
[320730536,1711539088483,-2308.15,0.00056164,120]
[320730537,1711539088493,-500.0,0.00056164,120]
[320730538,1711539088502,-500.0,0.00056164,120]
[320730539,1711539088511,-500.0,0.00056164,120]
[320730540,1711539088520,-500.0,0.00056164,120]
[320730541,1711539088529,-676.12,0.00056164,120]
[320730542,1711539088538,-500.0,0.00056164,120]
[320730543,1711539088547,-849.59,0.00056164,120]
[320730544,1711539088556,-500.0,0.00056164,120]
[320730545,1711539088565,-500.0,0.00056164,120]
[320730546,1711539088575,-677.22,0.00056164,120]
[320730547,1711539088584,-500.0,0.00056164,120]
[320730548,1711539088593,-500.0,0.00056164,120]
[320730549,1711539088602,-500.0,0.00056164,120]
[320730550,1711539088612,-500.0,0.00056164,120]
[320730551,1711539088621,-800.48,0.00056164,120]
[320730552,1711539088630,-988.02,0.00056164,120]
[320730553,1711539088639,-500.0,0.00056164,120]
[320730554,1711539088648,-535.04,0.00056164,120]
[320730555,1711539088657,-930.48,0.00056164,120]
[320730556,1711539088666,-500.0,0.00056164,120]
[320730557,1711539088676,-500.0,0.00056164,120]
[320730558,1711539088686,-877.53,0.00056164,120]
[320730559,1711539088695,-2082.72,0.00056164,120]
[320730560,1711539088704,-500.0,0.00056164,120]
[320730561,1711539088715,-520.53,0.00056164,120]
[320730562,1711539088724,-500.0,0.00056164,120]
[320730563,1711539088733,-1016.45,0.00056164,120]
[320730564,1711539088743,-525.83,0.00056164,120]
[320730565,1711539088752,-500.0,0.00056164,120]
[320730566,1711539088761,-500.0,0.00056164,120]
[320730567,1711539088770,-500.0,0.00056164,120]
[320730568,1711539088779,-1436.62,0.00056164,120]
[320730569,1711539088789,-2558.6,0.00056164,120]
[320730570,1711539088798,-2044.63,0.00056164,120]
[320730571,1711539088807,-500.0,0.00056164,120]
[320730572,1711539088816,-545.88,0.00056164,120]
[320730573,1711539088826,-783.0,0.00056164,120]
[320730574,1711539088835,-3085.25,0.00056164,120]
[320730575,1711539088845,-500.0,0.00056164,120]
[320730576,1711539088854,-500.0,0.00056164,120]
[320730577,1711539088863,-839.83,0.00056164,120]
[320730578,1711539088873,-735.26,0.00056164,120]
[320730579,1711539088882,-324.28,0.00056164,120]
[320730580,1711539088891,-523.74585134,0.00056164,7]
[320730581,1711539088901,-3173.89,0.00056164,120]
[320730582,1711539088910,-1365.01,0.00056164,120]
[320730583,1711539088920,-1347.96,0.00056164,120]
[320730584,1711539088929,-500.0,0.00056164,120]
[320730585,1711539088938,-500.0,0.00056164,120]
[320730586,1711539088948,-5132.44,0.00056164,120]